Workbook

Sheet koud buffet
B1: Deze info is van: Feestzaal Katelijnenhof, Heirweg 172, 8800 Roeselare. Contacteer de zaakvoerder: 0475/618058 - info@katelijnenhof.be - web: www.katelijnenhof.be met foto's en volledige prijslijst.
B3: ="Rekenmodule koud buffet. De prijzen van de recepties in deze module gelden voor alle personen waarvan de receptie gevolgd wordt door een maaltijd. Geldig tot " & DAY(matrixen!B1) & " - " & MONTH(matrixen!B1) & " - " & YEAR(matrixen!B1) -> Rekenmodule koud buffet. De prijzen van de recepties in deze module gelden voor alle personen waarvan de receptie gevolgd wordt door een maaltijd. Geldig tot 23 - 2 - 2018
F5: kinderen | H5: kinderen | J5: kinderen
D6: =IF(TODAY()>AA11,"Deze module is niet meer geldig.","") ->  | F6: 0 t.e.m. 2 j. 11 maand | H6: 3 j. t.e.m. 5 j. 11 maand | J6: 6 j, t.e.m. 11 jr. 11 maand
B7: Totaal per volwassene: | D7: =IF(TODAY()>AA11,1/0,SUM(D10:D993)) -> 33.8 | F7: 0,00 | H7: =D7/3 -> 11.26666667 | J7: =D7/2 -> 16.9
F8: U kan ook voor de kinderen een kindermenu nemen ( zie een andere rekenmodule)
B10: MAAK STEEDS UW KEUZE in de gele vakken: (scroll naar beneden om meer gegevens in te vullen) Hierboven kunt u uw prijs volgen. | I10: U vindt verder een overzicht van uw selectie
B11: (klik op de gele balk, vervolgens op het pijltje rechts en scroll ev. naar beneden) | D11: prijs pp | F11: Beknopte info | H11: Gedetailleerde info | AA11: =matrixen!B1 -> 2018-02-23
B13: Maak in dit vak uw keuze voor het aperitief | D13: =VLOOKUP(B13,matrixen!B11:I19,8,FALSE) -> 0 | F13: =HLOOKUP($B$13,matrixen!$K$14:$S$18,2,FALSE) -> 0 | H13: =HLOOKUP($B$13,matrixen!$T$14:$AB$28,2,FALSE) -> 0
B14: Maak in dit vak uw keuze voor het aperitief | F14: =HLOOKUP($B$13,matrixen!$K$14:$S$18,3,FALSE) -> 0 | H14: =HLOOKUP($B$13,matrixen!$T$14:$AB$28,3,FALSE) -> 0 | AA14: =matrixen!B11 -> Maak in dit vak uw keuze voor het aperitief
F15: =HLOOKUP($B$13,matrixen!$K$14:$S$18,4,FALSE) -> 0 | H15: =HLOOKUP($B$13,matrixen!$T$14:$AB$28,4,FALSE) -> 0 | AA15: =matrixen!B12 -> 1 aperitief per persoon
F16: =HLOOKUP($B$13,matrixen!$K$14:$S$19,5,FALSE) -> 0 | H16: =HLOOKUP($B$13,matrixen!$T$14:$AB$28,5,FALSE) -> 0 | AA16: =matrixen!B13 -> 2 aperitieven per persoon
H17: =HLOOKUP($B$13,matrixen!$T$14:$AB$28,6,FALSE) -> 0 | AA17: =matrixen!B14 -> Receptie F
H18: =HLOOKUP($B$13,matrixen!$T$14:$AB$28,7,FALSE) -> 0 | AA18: =matrixen!B15 -> Receptie E
B19: Indien een genodigde een extra aperitief bestelt of een aperitief wenst die niet in de prijs begrepen is dan: | H19: =HLOOKUP($B$13,matrixen!$T$14:$AB$28,8,FALSE) -> 0 | AA19: =matrixen!B16 -> Receptie D
B20: De gast die een extra aperitief bestelt betaalt deze zelf | F20: De gast die een extra aperitief bestelt betaalt deze zelf | H20: =HLOOKUP($B$13,matrixen!$T$14:$AB$28,9,FALSE) -> 0 | AA20: =matrixen!B17 -> Receptie C
B21: De gast die een extra aperitief bestelt betaalt deze zelf | F21: Alle extra aperitief komt op de algemene rekening. | H21: =HLOOKUP($B$13,matrixen!$T$14:$AB$28,10,FALSE) -> 0 | AA21: =matrixen!B18 -> Receptie B
H22: =HLOOKUP($B$13,matrixen!$T$14:$AB$28,11,FALSE) -> 0 | AA22: =matrixen!B19 -> Receptie A
H23: =HLOOKUP($B$13,matrixen!$T$14:$AB$28,12,FALSE) -> 0 | AA23: =matrixen!B20 -> 0
H24: =HLOOKUP($B$13,matrixen!$T$14:$AB$28,13,FALSE) -> 0 | AA24: =matrixen!#REF! -> 
H25: =HLOOKUP($B$13,matrixen!$T$14:$AB$28,14,FALSE) -> 0 | AA25: =matrixen!B22 -> 0
H26: =HLOOKUP($B$13,matrixen!$T$14:$AB$28,15,FALSE) -> 0 | AA26: =matrixen!B23 -> Schuimwijn van het huis (reeds inbegrepen)
AA27: =matrixen!B24 -> Cava
B28: Stel zelf uw koud buffet samen! | AA28: =matrixen!B25 -> Champagne
B29: In elk buffet zijn steeds groenten voorzien, koude aardappelen en/of aardappel in de pel en de schotels worden versierd met fruit. Ook de sausjes zijn inbegrepen. | AA29: =matrixen!B26 -> 0
B30: Afhankelijk van de soort ingrediënten die u kiest, verandert de prijs van het buffet. U mag elk ingrediënt meermaals aanduiden als u graag van iets een grotere portie heeft .
B31: Wij stellen voor om 12 ingrediënten te kiezen, voor een evenwichtig buffet. Meer of minder mag ook, het gewicht per persoon, per portie blijft steeds gelijk. | AA31: =matrixen!B44 -> Maak hier uw keuze voor extra hapjes bij het aperitief
B32: Meer info: ongeacht of u veel of weinig ingrediënten aanduidt, u bekomt steeds een even grote portie per persoon. Dus hoe meer ingrediënten u selecteert, hoe kleiner de hoeveelheid per soort op het buffet wordt. | AA32: =matrixen!B45 -> Nootjes, chips en zoutkoekjes zoveel u wenst, per pers.
B33: Indien niet duidelijk, bel of mail ons voor meer info. 0475/618058 of info@katelijnenhof.be. | AA33: =matrixen!B46 -> Rauwe groenten (wortel, bloemkool, cocktailsaus) prijs per persoon:
AA34: =matrixen!B47 -> Warme toostjes per stuk
B35: Kies hier eerst uw aardappelbereiding | AA35: =matrixen!B48 -> Koude toostjes per stuk
B36: Koude aardappelen | D36: =VLOOKUP(B36,matrixen!B85:G88,6,FALSE) -> inbegrepen | AA36: =matrixen!B49 -> aperitiefglaasjes per stuk
B37: Koude aardappelen | AA37: =matrixen!B50 -> Oesters per stuk warm of koud
B38: Selecteer hier de samenstelling van uw buffet. Indien u bij onderstaande lijst blijft, kost het buffet de basisprijs: | D38: =matrixen!B118 -> 31 | F38: ="Selecteert u één of meer van onderstaande specialiteiten, is er een supplement van "& matrixen!E118 &" euro pp t.o.v. de basisprijs" -> Selecteert u één of meer van onderstaande specialiteiten, is er een supplement van 5 euro pp t.o.v. de basisprijs | AA38: =matrixen!B51 -> wachtbordje met vispasteitje
A39: 1 | B39: Kies uit deze vlees- of visspecialiteiten | E39: 1 | F39: supplement 1 | G39: =IF(F39<> "supplement 1",1,0) -> 0 | H39: =IF(G39+G40+G41+G42+G43+G44+G45+G46+G47>0,matrixen!E118,0) -> 0 | J39: U mag tegelijk ook | AA39: =matrixen!B52 -> wachtbordje van reuzentoost met gerookte zalm
A40: 2 | B40: Kies uit deze vlees- of visspecialiteiten | E40: 2 | F40: supplement 1 | G40: =IF(F40<> "supplement 1",1,0) -> 0 | H40: =IF(D50>0,matrixen!E118,0) -> 0 | J40: uit de vorige categorie kiezen | AA40: =matrixen!B53 -> wachtbordje van lauw slaatje met gerookte zalm en scampi's
A41: 3 | B41: Kies uit deze vlees- of visspecialiteiten | E41: 3 | F41: supplement 1 | G41: 0 | H41: =H39-H40 -> 0 | AA41: =matrixen!B54 -> 0
A42: 4 | B42: Kies uit deze vlees- of visspecialiteiten | D42: =IF(H41>0,H41,0) -> 0 | E42: 4 | F42: supplement 1 | G42: 0 | AA42: =matrixen!B55 -> 0
A43: 5 | B43: Kies uit deze vlees- of visspecialiteiten | E43: 5 | F43: supplement 1 | G43: 0 | AA43: =matrixen!B56 -> 0
A44: 6 | B44: Kies uit deze vlees- of visspecialiteiten | E44: 6 | F44: supplement 1 | G44: 0 | AA44: =matrixen!B85 -> Koude aardappelen
A45: 7 | B45: Kies uit deze vlees- of visspecialiteiten | E45: 7 | F45: supplement 1 | G45: 0 | AA45: =matrixen!B86 -> Aardappel in de pel
A46: 8 | B46: Kies uit deze vlees- of visspecialiteiten | E46: 8 | F46: supplement 1 | G46: 0 | AA46: =matrixen!B87 -> 1/2 koude aardappelen en 1/2 aardappel in de pel
A47: 9 | B47: Kies uit deze vlees- of visspecialiteiten | E47: 9 | F47: supplement 1 | G47: 0 | AA47: =matrixen!B88 -> frietjes (supplement)
A48: 10 | B48: Kies uit deze vlees- of visspecialiteiten | F48: ="Selecteert u één of meer van onderstaande specialiteiten, is er een supplement van " & matrixen!H118 & " euro pp t.o.v. de basisprijs" -> Selecteert u één of meer van onderstaande specialiteiten, is er een supplement van 8,5 euro pp t.o.v. de basisprijs
A49: 11 | B49: Kies uit deze vlees- of visspecialiteiten | F49: U mag tegelijk ook uit beide vorige categoriën kiezen. | AA49: =matrixen!B97 -> Kies uit deze vlees- of visspecialiteiten
A50: 12 | B50: Kies uit deze vlees- of visspecialiteiten | D50: =IF(H50>0,matrixen!H118,0) -> 0 | E50: 1 | F50: supplement 2 | G50: =IF(F50<> "supplement 2",1,0) -> 0 | H50: =IF(G50+G51+G52>0,11,0) -> 0 | AA50: =matrixen!B98 -> tonijnsla
B51: Kies uit deze vlees- of visspecialiteiten | E51: 2 | F51: supplement 2 | G51: =IF(F51<> "supplement 2",1,0) -> 0 | AA51: =matrixen!B99 -> vispastei
E52: 3 | F52: supplement 2 | G52: =IF(F52<> "supplement 2",1,0) -> 0 | AA52: =matrixen!B100 -> koolvis
F53: supplement 1 | AA53: =matrixen!B101 -> halve tomaat belegd met krabsla
B54: Selecteer hier uw formule van de dranken tijdens het buffet. | F54: supplement 2 | AA54: =matrixen!B102 -> pandalusgarnalen
B55: Huiswijn, bieren en frisdranken als forfait | D55: =VLOOKUP(B55,matrixen!B124:M126,12,FALSE) -> 2.8 | AA55: =matrixen!B103 -> haring met dille
B56: Huiswijn, bieren en frisdranken als forfait | AA56: =matrixen!B104 -> américain préparé
F57: extra info | AA57: =matrixen!B105 -> varkensgebraad
B58: Selecteer hier uw dessert. | AA58: =matrixen!B106 -> salami
B59: Nog geen dessert geselecteerd | D59: =VLOOKUP(B59,matrixen!B127:I150,8,FALSE) -> 0 | F59: =VLOOKUP($B$59,dessert,10,FALSE) -> 0 | AA59: =matrixen!B107 -> gekookte achterham
B60: Nog geen dessert geselecteerd | F60: =VLOOKUP($B$59,dessert,11,FALSE) -> 0 | AA60: =matrixen!B108 -> hennepot
F61: =VLOOKUP($B$59,dessert,12,FALSE) -> 0 | AA61: =matrixen!B109 -> vleespastei
F62: =VLOOKUP($B$59,dessert,13,FALSE) -> 0 | AA62: =matrixen!B110 -> hoofdvlees
F63: =VLOOKUP($B$59,dessert,14,FALSE) -> 0 | AA63: =matrixen!B111 -> stukjes kippebout
F64: =VLOOKUP($B$59,dessert,15,FALSE) -> 0 | AA64: =matrixen!B112 -> hespeworst
B65: Selecteer hier uw koffie | AA65: =matrixen!B113 -> gepocheerde zalm
B66: Nog geen keuze gemaakt | D66: =VLOOKUP(B66,matrixen!B154:I157,8,FALSE) -> 0 | AA66: =matrixen!B114 -> gerookte bacon
B67: Nog geen keuze gemaakt | AA67: =matrixen!B115 -> gepocheerde forel
B68: Alle drank na de maaltijd komt op één rekening en wordt door de organisator van het feest betaald | D68: =VLOOKUP(B68,matrixen!A159:P161,15,FALSE) -> 0 | E68: =VLOOKUP(B68,matrixen!A159:P161,16,FALSE) -> één rekening | F68: Vegetariërs: | G68: nee | H68: Speciale dieten: | I68: nee | J68: Halal bereidingen: | K68: nee | AA68: =matrixen!B116 -> makreel met peper
B69: Alle drank na de maaltijd komt op één rekening en wordt door de organisator van het feest betaald
B70: Wijze van betaling: | F70: Feest met discobar: | G70: nee | H70: Allergenen: | I70: nee | J70: =IF($I$70="ja",matrixen!A165,"") ->  | AA70: =matrixen!E97 -> supplement 1
B71: Betaling op de dag zelf (cash of bancontact), u bekomt 2% korting op het totaal | J71: =IF($I$70="ja",matrixen!A166,"") ->  | AA71: =matrixen!E98 -> tomaat met grijze garnalen
H72: =IF(G70="ja",matrixen!A169,"") ->  | J72: =IF($I$70="ja",matrixen!A167,"") ->  | AA72: =matrixen!E99 -> gerookte zalm
B73: Om uw selecties te bewaren, gelieve ze op te slaan op uw harde schijf. (opslaan als) | AA73: =matrixen!E100 -> parmaham
B74: Om een aanvraag naar ons te versturen stuur een mail naar info@katelijnenhof met in bijlage dit bestand vanaf uw harde schijf. | AA74: =matrixen!E101 -> langoustines 1 pp
E75: Eventuele datum van het feest: | H75: Overzicht van uw selectie: | AA75: =matrixen!E102 -> gebakken scampi's 2 pp
F76: Het exacte aantal personen en de tafelschikking dient ons meegedeeld te worden de vrijdag van het weekend voordien. | H76: =IF(L76>0,B13,"") ->  | L76: =D13 -> 0 | AA76: =matrixen!E103 -> roastbeef
E77: geraamd aantal volwassenen: | H77: =IF(L77>0,B92,"") ->  | I77: =IF(L77>0,"geldt alleen bij recepties!!!","") ->  | L77: =D92 -> 0 | AA77: =matrixen!E104 -> kabeljauw
E78: geraamd aantal kinderen 6 j. t.e.m. 11 jr. 11 maand: | H78: =IF(L78>0,B98,"") ->  | L78: =D98 -> 0 | AA78: =matrixen!E105 -> gerookte heilbot
E79: geraamd aantal kinderen 3 j. t.e.m. 5 j. 11 maand: | H79: =IF(L79>0,B99,"") ->  | L79: =D99 -> 0 | AA79: =matrixen!E106 -> gerookte forelfilet
E80: geraamd aantal kinderen 0 t.e.m. 2 j. 11 maand: | H80: =IF(L80>0,B100,"") ->  | L80: =D100 -> 0
H81: =IF(L81>0,B101,"") ->  | L81: =D101 -> 0 | AA81: =matrixen!H97 -> supplement 2
E82: uur van aankomst: | H82: =IF(L82>0,B102,"") ->  | L82: =D102 -> 0 | AA82: =matrixen!H98 -> foie gras
E83: aan tafel om: | H83: =B36 -> Koude aardappelen | L83: =D36 -> inbegrepen | AA83: =matrixen!H99 -> oesters 2pp
E84: Uw naam: | H84: Groenten en sausen | L84: inbegrepen | AA84: =matrixen!H100 -> kreeft
E85: Adres: | H85: Basisprijs koud buffet (gedetailleerde samenstelling zie hoger): | L85: =D38 -> 31
E86: Stad: | H86: =IF(L86>0,"U selecteerde ook uit supplement 1","") ->  | L86: =D42 -> 0 | AA86: =matrixen!B124 -> Huiswijn, bieren en frisdranken als forfait
E87: Tel nr: | H87: =IF(L87>0,"U selecteerde ook uit supplement 2","") ->  | L87: =D50 -> 0 | AA87: =matrixen!B125 -> Domaine Joel Delauny Touraine en/of Château Reynier, Bordeaux superieur, bieren en frisdranken
E88: email: | H88: =B55 -> Huiswijn, bieren en frisdranken als forfait | L88: =D55 -> 2.8 | AA88: =matrixen!B126 -> 0
E89: geraamde totalen uit andere rekenbladen: | H89: =IF(L89>0,B59,"") ->  | L89: =D59 -> 0
B90: Mogelijke supplementen bij de recepties | E90: (vb: kindermenus) | H90: =IF(L90>0,B66,"") ->  | L90: =D66 -> 0 | AA90: =matrixen!B127 -> Nog geen dessert geselecteerd
H91: Keuze drank na de maaltijd: | L91: =E68 -> één rekening | AA91: =matrixen!B128 -> Halve gegarneerde maan
B92: Schuimwijn van het huis (reeds inbegrepen) | D92: =VLOOKUP(B92,matrixen!B23:I26,8,FALSE) -> 0 | AA92: =matrixen!B129 -> Waaier van nagerechten (gebak, ijs, chocomousse, fruit)
E93: Geschat factuurtotaal: | F93: =Reservatievoorstel!I12 -> 0 | H93: Gaat u akkoord met de algemene verkoopsvoorwaarden? | K93: ja | AA93: =matrixen!B130 -> IJstaart ambachtelijk, speciale vorm, smaak naar keuze
F94: (Gebaseerd op de door u ingebrachte gegevens) | J94: Voorkeur tafelschikking: | K94: geen voorkeur | AA94: =matrixen!B131 -> Trio van witte- melk- en fondantchocolade op amandelbiscuit
B95: Eventueel: extra hapjes bij het aperitief. | F95: korting bij contante betaling: | G95: =F93*0.02 -> 0 | J95: reden feest: | AA95: =matrixen!B132 -> Stel zelf uw mini dessertbordje samen met 4 dessertjes
F96: saldo: | G96: =F93-G95 -> 0 | J96: Opmerking: | AA96: =matrixen!B133 -> Coupe met vers fruit en verse slagroom.
E97: =SUMIF(B98:B102,"warme toostjes per stuk",D98:D102) -> 0 | F97: =IF($E$97>0,matrixen!B58,"") ->  | G97: =SUMIF(B98:B102,"koude toostjes per stuk",D98:D102) -> 0 | H97: =IF($G$97>0,matrixen!E58,"") ->  | I97: =SUMIF(B98:B102,"aperitiefglaasjes per stuk",D98:D102) -> 0 | J97: Wenst u een factuur? | K97: nee | AA97: =matrixen!B134 -> Aardbeiensoepje met sinaasappel in seizoen
B98: Maak hier uw keuze voor extra hapjes bij het aperitief | D98: =VLOOKUP(B98,matrixen!$B$44:$I$55,8,FALSE) -> 0 | F98: =IF($E$97>0,matrixen!B59,"") ->  | H98: =IF($G$97>0,matrixen!E59,"") ->  | J98: =IF($I$97>0,matrixen!H59,"") ->  | K98: =IF(K97="ja","Gelieve uw facturatiegegevens bij opmerkingen in te vullen.","") ->  | AA98: =matrixen!B135 -> Coupe met aardbeien en verse slagroom.
B99: Maak hier uw keuze voor extra hapjes bij het aperitief | D99: =VLOOKUP(B99,matrixen!$B$44:$I$55,8,FALSE) -> 0 | F99: =IF($E$97>0,matrixen!B60,"") ->  | H99: =IF($G$97>0,matrixen!E60,"") ->  | J99: =IF($I$97>0,matrixen!H60,"") ->  | AA99: =matrixen!B136 -> Dame blanche
B100: Maak hier uw keuze voor extra hapjes bij het aperitief | D100: =VLOOKUP(B100,matrixen!$B$44:$I$55,8,FALSE) -> 0 | F100: =IF($E$97>0,matrixen!B61,"") ->  | H100: =IF($G$97>0,matrixen!E61,"") ->  | J100: =IF($I$97>0,matrixen!H61,"") ->  | AA100: =matrixen!B137 -> - frambozentaart
B101: Maak hier uw keuze voor extra hapjes bij het aperitief | D101: =VLOOKUP(B101,matrixen!$B$44:$I$55,8,FALSE) -> 0 | F101: =IF($E$97>0,matrixen!B62,"") ->  | H101: =IF($G$97>0,matrixen!E62,"") ->  | J101: =IF($I$97>0,matrixen!H62,"") ->  | AA101: =matrixen!B138 -> - progres
B102: Maak hier uw keuze voor extra hapjes bij het aperitief | D102: =VLOOKUP(B102,matrixen!$B$44:$I$55,8,FALSE) -> 0 | F102: =IF($E$97>0,matrixen!B63,"") ->  | H102: =IF($G$97>0,matrixen!E63,"") ->  | J102: =IF($I$97>0,matrixen!H63,"") ->  | AA102: =matrixen!B139 -> - fruitgebakje
F103: =IF($E$97>0,matrixen!B64,"") ->  | H103: =IF($G$97>0,matrixen!E64,"") ->  | AA103: =matrixen!B140 -> - biscuit crème fraiche met coulis
AA104: =matrixen!B141 -> - warme appeltaart met een bolletje ijs
AA105: =matrixen!B142 -> - zwarte woudtaart
AA106: =matrixen!B143 -> Sabayon met rood fruit
AA107: =matrixen!B144 -> Verse ananas met ijs en suikerspin
AA108: =matrixen!B145 -> Basis dessertbuffet met:
AA109: =matrixen!B146 -> Uitgebreid dessertbuffet met:
AA110: =matrixen!B147 -> Uitgebreid en luxueus dessertbuffet met:
AA112: =matrixen!B154 -> Nog geen keuze gemaakt
AA113: =matrixen!B155 -> Koffie 3 X bediend
AA114: =matrixen!B156 -> Koffie 3 X bediend met koekjes
AA115: =matrixen!B157 -> Koffie 3 X bediend met pralines
AA117: =matrixen!A159 -> Alle drank na de maaltijd komt op één rekening en wordt door de organisator van het feest betaald
AA118: =matrixen!A160 -> Elke gast die na de maaltijd een drankje bestelt rekent direct af aan de bar
AA119: =matrixen!A161 -> Forfait voor drank naar believen (alle bieren en frisdranken van de drankkaart in de zaal) na een maaltijd. pp:
AA121: =matrixen!A187 -> ja
AA122: =matrixen!A188 -> nee
AA124: geen voorkeur
AA125: zoveel mogelijk ronde tafels van 6 à 8 personen
AA126: liever lange tafels ev. In U-vorm of H-vorm.
AA129: =matrixen!A380 -> Betaling op de dag zelf (cash of bancontact), u bekomt 2% korting op het totaal
AA130: =matrixen!A381 -> Storting op BE 48 4631 1391 2127 of op BE 14 3770 7615 9383, min. 7 dagen voor het feest, 2% korting
AA131: =matrixen!A382 -> Betaling na het feest. Gelieve 40 % voorschot te storten op BE48 4631 1391 2127 of op BE14 3770 7615 9383 . Geen korting.

Sheet matrixen (hidden)
B1: 2018-02-23 | L1: lam, zwanen enz.. . Met foto suppl. | P1: 15
L2: Foto op de taart: suppl. € | O2: 0.7 | P2: per stuk taart en € | R2: 10 | S2: per foto
B6: Minimaal verbruik feest | E6: 950
B11: Maak in dit vak uw keuze voor het aperitief
B12: 1 aperitief per persoon | I12: 6
B13: 2 aperitieven per persoon | I13: 10
B14: Receptie F | I14: 15.5 | K14: Maak in dit vak uw keuze voor het aperitief | L14: 1 aperitief per persoon | M14: 2 aperitieven per persoon | N14: Receptie F | O14: Receptie E | P14: Receptie D | Q14: Receptie C | R14: Receptie B | S14: Receptie A | T14: Maak in dit vak uw keuze voor het aperitief | U14: 1 aperitief per persoon | V14: 2 aperitieven per persoon | W14: Receptie F | X14: Receptie E | Y14: Receptie D | Z14: Receptie C | AA14: Receptie B | AB14: Receptie A
B15: Receptie E | I15: 12.6 | L15: 1 per persoon, | M15: 2 per persoon, | N15: Zeer uitgebreide receptie | O15: Uitgebreide receptie | P15: Basis receptie. | Q15: Zeer uitgebreide receptie | R15: Uitgebreide receptie | S15: Basis receptie. | U15: vrije keuze | V15: vrije keuze | W15: dranken inbegrepen gedurende 2 uur | X15: dranken inbegrepen gedurende 2 uur | Y15: dranken inbegrepen gedurende 2 uur | Z15: dranken inbegrepen gedurende 2 uur | AA15: dranken inbegrepen gedurende 2 uur | AB15: dranken inbegrepen gedurende 2 uur
B16: Receptie D | I16: 11.1 | L16: eventueel tweede wordt | M16: eventueel derde wordt | N16: met 4 aperitiefglaasjes, | O16: met 4 aperitiefglaasjes | P16: Dranken 2 uur inbegrepen. | Q16: met 3 koude toastjes en 3 warme | R16: met 3 koude toastjes en 3 warme | S16: Dranken 2 uur inbegrepen. | U16: Porto rood | V16: Porto rood | W16: met Schuimwijn van het huis en alle frisdranken en bieren naar believen, | X16: met Schuimwijn van het huis en alle frisdranken en bieren naar believen, | Y16: met Schuimwijn van het huis en alle frisdranken en bieren naar believen, | Z16: met Schuimwijn van het huis en alle frisdranken en bieren naar believen, | AA16: met Schuimwijn van het huis en alle frisdranken en bieren naar believen, | AB16: met Schuimwijn van het huis en alle frisdranken en bieren naar believen,
B17: Receptie C | I17: 15.5 | L17: direct afgerekend of | M17: direct afgerekend of | N17: een soepje, 2 warme hapjes | O17: en drank gedurende 2 uur. | Q17: hapjes, kleine versnaperingen | R17: hapjes, kleine versnaperingen | U17: Martini | V17: Martini | W17: Assortiment van 4 aperitiefglaasjes (samenstelling kan verschillen), een soepje en 2 warme hapjes | X17: Assortiment van 4 aperitiefglaasjes: (samenstelling kan verschillen) | Y17: kaasjes, salami, tapenades, | Z17: kaasjes, salami, olijven, nootjes en chips. | AA17: kaasjes, salami, olijven, nootjes en chips. | AB17: tapenades
B18: Receptie B | I18: 12.6 | L18: komt op 1 rekening | M18: komt op 1 rekening | N18: en drank gedurende 2 uur. | Q18: en drank gedurende 2 uur. | U18: Kir | V18: Kir | W18: * eendenmousse met rode bessen en koornbloemblaadjes | X18: * eendenmousse met rode bessen en koornbloemblaadjes | Y18: olijven en nootjes en chips | Z18: lepeltje gevuld met vismousse | AA18: lepeltje gevuld met vismousse | AB18: nootjes en chips
B19: Receptie A | I19: 10 | U19: Frisdrank | V19: Frisdrank | W19: * luzerne met gerookte zalm, eitjes van vliegende vis in wasabi | X19: * luzerne met gerookte zalm, eitjes van vliegende vis in wasabi | Z19: lepeltje gevuld met vleesmousse | AA19: lepeltje gevuld met vleesmousse
U20: Bieren | V20: Bieren | W20: * mousse van krab met rode bietscheutjes | X20: * mousse van krab met rode bietscheutjes | Z20: 3 warme hapjes pp | AA20: 3 warme hapjes pp
U21: nootjes en chips inbegrepen | V21: nootjes en chips inbegrepen | W21: * preischeuten met garnalen en mini tomaat | X21: * preischeuten met garnalen en mini tomaat | Z21: * kippenbilletje * toastcupje * garnaal in filodeeg | AA21: * kippenbilletje * toastcupje * garnaal in filodeeg
U22: TIP: | V22: TIP: | W22: * tomatensoepje en 2 warme hapjes, standaard een garnaal in filodeeg en een kippenvleugeltje | Z22: 3 koude toostjes pp | AA22: 0
B23: Schuimwijn van het huis (reeds inbegrepen) | I23: 0 | U23: Een receptie naar believen | V23: Receptie A is dezelfde prijs. | W23: TIP: Er is veel meer keuze dan de standaard hapjes | X23: TIP: Er is veel meer keuze dan de standaard hapjes | Z23: * gerookte zalm * vissalade * grijze garnalen | AA23: 0
B24: Cava | I24: 3.25 | U24: kost evenveel als | V24: Maar daar is de drank naar believen gedurende | W24: die hierboven vermeld worden. Via deze tool kunt u dit | X24: die hierboven vermeld worden. Via deze tool kunt u dit | Z24: Tip: Bovenstaande hapjes kunnen ook gewijzigd worden. | AA24: Tip: Bovenstaande hapjes kunnen ook gewijzigd worden.
B25: Champagne | I25: 7 | U25: 2 aperitieven per persoon. | V25: maximaal 2 uur. En er zijn wat tapenades. | W25: niet aanpassen maar wel als u bij ons langskomt. | X25: niet aanpassen maar wel als u bij ons langskomt. | Z25: Niet via deze tool maar wel bij reservatie | AA25: Niet via deze tool maar wel bij reservatie
U26: Selecteer daartoe receptie A! | V26: We komen rond met schuimwijn en | W26: De keuzemogelijkheden staan gedetailleerd | X26: De keuzemogelijkheden staan gedetailleerd | Z26: De keuzemogelijkheden staan gedetailleerd | AA26: De keuzemogelijkheden staan gedetailleerd
U27: 0 | V27: fruitsap maar alle bovenstaande dranken | W27: beschreven in het pdf document "prijslijst" pagina 9. | X27: beschreven in het pdf document "prijslijst" pagina 9. | Z27: beschreven in het pdf document "prijslijst" pagina 9. | AA27: beschreven in het pdf document "prijslijst" pagina 9.
U28: 0 | V28: kunnen op vraag ook bekomen worden. | W28: U krijgt hier wel een prijsindicatie maar weet dat er meer moglijkheden zijn. | X28: U krijgt hier wel een prijsindicatie maar weet dat er meer moglijkheden zijn. | Z28: U krijgt hier wel een prijsindicatie maar weet dat er meer moglijkheden zijn. | AA28: U krijgt hier wel een prijsindicatie maar weet dat er meer moglijkheden zijn.
B30: Dessertbuffet zonder maaltijd: | I30: 16.5
B31: Koffie 3 X bediend | I31: 2.5
B34: 1 aperitief per persoon, vrije keuze | I34: 6
B35: Pineau des charentes wit | I35: 6
B36: Maison (basis safari) | I36: 6
B37: Kir royale | I37: 6
B38: Sherry dry | I38: 6
B39: Porto | I39: 6
B40: Martini (wit/rood) | I40: 6
B41: Kir | I41: 6
B42: Schuimwijn | I42: 6
B44: Maak hier uw keuze voor extra hapjes bij het aperitief
B45: Nootjes, chips en zoutkoekjes zoveel u wenst, per pers. | I45: gratis
B46: Rauwe groenten (wortel, bloemkool, cocktailsaus) prijs per persoon: | I46: 1
B47: Warme toostjes per stuk | I47: 1
B48: Koude toostjes per stuk | I48: 1.3
B49: aperitiefglaasjes per stuk | I49: 2
B50: Oesters per stuk warm of koud | I50: 2.3
B51: wachtbordje met vispasteitje | I51: 4
B52: wachtbordje van reuzentoost met gerookte zalm | I52: 4
B53: wachtbordje van lauw slaatje met gerookte zalm en scampi's | I53: 6
B58: Keuze warme toostjes | E58: Keuze koude toostjes | H58: Keuze aperoglaasjes
B59: (bij reservatie te bepalen) | E59: (bij reservatie te bepalen) | H59: (bij reservatie te bepalen)
B60: kippenbilletjes | E60: toost garnaal koud | H60: aperoglaasje eendenmousse
B61: toostcupje | E61: toost gerookte zalm koud | H61: aperoglaasje gerookte zalm
B62: garnaal in filo | E62: toost krabsla koud | H62: aperoglaasje mousse van krab
B63: mini croque | E63: toost eendenpastei koud | H63: aperoglaasje tomaat / garnaal
B64: scampi enz…. | H64: en nog veel mogelijkheden
C69: uitgebreide fomule met toostjes in menuvorm (max 3uur)
C70: “3 koude voorgerechtjes”
C71: koud hapje met krabsla
C72: koud hapje met gerookte zalm
C73: koud hapje met grijze garnalen
C74: “soepje”
C75: 1 mini soepje tomatenroom of vissoepje
C76: “3 warme gerechtjes”
C77: kippenboutje
C78: mini loempia
C79: mini croque monsieur
C80: “2 dessertjes”
C81: mini-brochetje met druifje, ananas en meloenbolletje
C82: mini confituurtaartje
B85: Koude aardappelen | G85: inbegrepen
B86: Aardappel in de pel | G86: inbegrepen
B87: 1/2 koude aardappelen en 1/2 aardappel in de pel | G87: inbegrepen
B88: frietjes (supplement) | G88: 1
A97: 1 | B97: Kies uit deze vlees- of visspecialiteiten | D97: 1 | E97: supplement 1 | G97: 1 | H97: supplement 2
A98: 2 | B98: tonijnsla | D98: 2 | E98: tomaat met grijze garnalen | G98: 2 | H98: foie gras
A99: 3 | B99: vispastei | D99: 3 | E99: gerookte zalm | G99: 3 | H99: oesters 2pp
A100: 4 | B100: koolvis | D100: 4 | E100: parmaham | G100: 4 | H100: kreeft
A101: 5 | B101: halve tomaat belegd met krabsla | D101: 5 | E101: langoustines 1 pp
A102: 6 | B102: pandalusgarnalen | D102: 6 | E102: gebakken scampi's 2 pp
A103: 7 | B103: haring met dille | D103: 7 | E103: roastbeef
A104: 8 | B104: américain préparé | D104: 8 | E104: kabeljauw
A105: 9 | B105: varkensgebraad | D105: 9 | E105: gerookte heilbot
A106: 10 | B106: salami | D106: 10 | E106: gerookte forelfilet
A107: 11 | B107: gekookte achterham
A108: 12 | B108: hennepot
A109: 13 | B109: vleespastei
A110: 14 | B110: hoofdvlees
A111: 15 | B111: stukjes kippebout
A112: 16 | B112: hespeworst
A113: 17 | B113: gepocheerde zalm
A114: 18 | B114: gerookte bacon | F114: De aanpassing gebeurt ondertussen automatisch
A115: 19 | B115: gepocheerde forel
A116: 20 | B116: makreel met peper
B117: basisprijs | E117: sup. Tov basisprijs | H117: sup. Tov basisprijs
B118: 31 | E118: 5 | H118: 8.5
B119: Basisprijs buffet: | E119: Supplement "koning" | H119: Supplement "keizer"
B124: Huiswijn, bieren en frisdranken als forfait | M124: 2.8
B125: Domaine Joel Delauny Touraine en/of Château Reynier, Bordeaux superieur, bieren en frisdranken | M125: 7
B127: Nog geen dessert geselecteerd
B128: Halve gegarneerde maan | I128: 8.8 | K128: Een echte smaakbom van chocolade, rode vruchten en basilicum
B129: Waaier van nagerechten (gebak, ijs, chocomousse, fruit) | I129: 6 | K129: Zeer royaal bord met gebak, ijs, chocomousse en fruit
B130: IJstaart ambachtelijk, speciale vorm, smaak naar keuze | I130: 5.3 | K130: Ijstaart met foto: 15 euro per foto (min personen). Speciale garnituren mits meerprijs mogelijk.
B131: Trio van witte- melk- en fondantchocolade op amandelbiscuit | I131: 5.9
B132: Stel zelf uw mini dessertbordje samen met 4 dessertjes | I132: 3.9 | K132: Roomijs en/of Bruine chocolademousse en/of Pasteis de nata en/of
B133: Coupe met vers fruit en verse slagroom. | I133: 3.9 | K133: Vanilleijs, vers fruit en verse slagroom
B134: Aardbeiensoepje met sinaasappel in seizoen | I134: 3.9 | K134: Sinaasappelsap met grand marnier en daarin vers gesneden aardbeien (alleen in seizoen)
B135: Coupe met aardbeien en verse slagroom. | I135: 3.9 | K135: Vanilleijs, verse aardbeien en verse slagroom
B136: Dame blanche | I136: 3.9 | K136: Vanilleijs, verse slagroom,warme chocoladesaus.
B137: - frambozentaart | I137: 5.75 | K137: De lekkerste van alle gebakjes.
B138: - progres | I138: 5.75 | K138: Een klassieker.
B139: - fruitgebakje | I139: 3.9 | K139: Klein maar fijn gebakje
B140: - biscuit crème fraiche met coulis | I140: 3.9 | K140: Vrij groot stuk met slagroom. Foto op de taart: suppl. € 0,7 per stuk taart en € 10 per foto
B141: - warme appeltaart met een bolletje ijs | I141: 3.9 | K141: Hier heb je zowel gebak als vanilleijs.
B142: - zwarte woudtaart | I142: 5.75 | K142: Biscuit met cacaopoeder in een tasje.
B143: Sabayon met rood fruit | I143: 3.9 | K143: Sabayon, fruit en ijs
B144: Verse ananas met ijs en suikerspin | I144: 3.9
B145: Basis dessertbuffet met: | I145: 10 | K145: vers fruit, verschillende soorten sorbet, chocolademousse, roomijs | L145: variatie van miserable, javanais, pasteis de nata, roomsoes, speculoostaart, | M145: De samenstelling van het buffet kan verschillen, naargelang de grootte van de groep | P145: Belangrijk: De prijs van dit dessertbuffet geldt alleen indien voorafgegaan door een maaltijd!!
B146: Uitgebreid dessertbuffet met: | I146: 12 | K146: vers fruit, verschillende soorten sorbet, chocolademousse, roomijs | L146: variatie van miserable, javanais, pasteis de nata, roomsoes, speculoostaart, | M146: De samenstelling van het buffet kan verschillen, naargelang de grootte van de groep | N146: assortiment van mini-bavarois (framboos-passie-zwarte woud-pistache-chocolade praliné) | P146: Belangrijk: De prijs van dit dessertbuffet geldt alleen indien voorafgegaan door een maaltijd!!
B147: Uitgebreid en luxueus dessertbuffet met: | I147: 14 | K147: vers fruit, verschillende soorten sorbet, chocolademousse, roomijs | L147: variatie van miserable, javanais, pasteis de nata, roomsoes, speculoostaart, | M147: De samenstelling van het buffet kan verschillen, naargelang de grootte van de groep | N147: assortiment van mini-bavarois (framboos-passie-zwarte woud-pistache-chocolade praliné) | O147: dessertglaasjes (framboos-amandel - trio chocolade - mango-caramel - chocolade praliné) | P147: Belangrijk: De prijs van dit dessertbuffet geldt alleen indien voorafgegaan door een maaltijd!!
B154: Nog geen keuze gemaakt
B155: Koffie 3 X bediend | H155: € | I155: 2.5
B156: Koffie 3 X bediend met koekjes | H156: € | I156: 3.35
B157: Koffie 3 X bediend met pralines | H157: € | I157: 3.9
A159: Alle drank na de maaltijd komt op één rekening en wordt door de organisator van het feest betaald | P159: één rekening
A160: Elke gast die na de maaltijd een drankje bestelt rekent direct af aan de bar | P160: direct afrekenen
A161: Forfait voor drank naar believen (alle bieren en frisdranken van de drankkaart in de zaal) na een maaltijd. pp: | O161: 16 | P161: 16 | Q161: alletwee de prijzen nodig!
A162: Indien er geen volwaardige maaltijd wordt genomen, dienen er minstens 4 belegde broodjes genomen te worden en verhoogt het drankforfait tot € 28,00 | P162: 28
A163: 's middags tot 21 u - 's avonds onbeperkt. Let op! Artikel 8 van de verkoopsvoorwaarden (zie laatste bladzijde) kan hier van toepassing zijn !!!!
A165: Neem contact op met de zaakvoerder op tel nr 0475/618058 | P165: x
A166: om hier zeker geen misverstanden over te hebben!
A169: Verbruik van DJ ten laste van de klant
A171: Voor onze vegetarische klanten:
A173: - Voor onze vegetarische klanten bereiden wij graag een aparte schotel.
A174: Wij vragen wel met aandrang om op voorhand te melden als er vegetariërs zijn.
A175: Zij eten mee aan de prijs van de rest van de groep.
A180: Mensen met een speciaal dieet:
A182: Wij houden rekening met speciale wensen van mensen die een dieet volgen,
A183: maar alleen indien op voorhand gemeld.
A185: Halal kan ook, onder toezicht van een moslim bereid.
A187: ja
A188: nee
A380: Betaling op de dag zelf (cash of bancontact), u bekomt 2% korting op het totaal
A381: Storting op BE 48 4631 1391 2127 of op BE 14 3770 7615 9383, min. 7 dagen voor het feest, 2% korting
A382: Betaling na het feest. Gelieve 40 % voorschot te storten op BE48 4631 1391 2127 of op BE14 3770 7615 9383 . Geen korting.

Sheet Algemene verkoopsvoorwaarden
B1: Algemene verkoopsvoorwaarden:
B2: 1) Onze facturen zijn contant te betalen bij levering van de goederen. Bijgevolg zal in geval van laattijdige betaling
B3: van rechtswege en zonder voorafgaande ingebrekestelling een intrest aangerekend worden van 12% per jaar op de
B4: bedragen, verschuldigd acht dagen na de vervaldag van de facturen. Tevens zal bij gebrek aan betaling na
B5: aanmaning bij gewone brief, het verschuldigde bedrag van rechtswege verhoogd worden met een forfaitaire
B6: vergoeding van 12 % met een minimum van € 50 voor bijkomende administratieve kosten, debiteurenbewaking
B7: en commerciële stoornissen. Wij behouden ons het recht voor op elk moment de leveringen te staken. Elke
B8: klacht over de kwaliteit van de geleverde goederen moet uiterlijk 24 uur na de levering worden overgemaakt.
B9: Klachten in verband met facturatie kunnen slechts in aanmerking worden genomen zo zij binnen de acht
B10: dagen na ontvangst van de goederen bij aangetekende brief worden meegedeeld. In geval van betwisting zijn
B11: uitsluitend de rechtbanken van Kortrijk bevoegd. De leveringen geschieden op risico van de bestemmeling. Er
B12: wordt uitdrukkelijk overeengekomen dat de klant door het plaatsen van een bestelling onze algemene
B13: verkoopsvoorwaarden erkent. Elke wijziging hieraan moet voorafgaandelijk in een schriftelijk akkoord worden
B14: vastgelegd.
B16: 2) Annulatie dient schriftelijk en gedateerd te geschieden.
B17: In geval van annulatie minder dan 60 dagen voor de activiteit blijft het voorschot eigendom van het Katelijnenhof.
B18: Voor annulatie minder dan 10 dagen voor de activiteit is de klant in alle gevallen verplicht 35 % van de reservatie-
B19: waarde van de gehele manifestatie te vergoeden.
B20: Bij annulatie minder dan 5 dagen voor de activiteit is de klant in alle gevallen verplicht de reservatie waarde van de
B21: gehele manifestatie te vergoeden.
B23: 3) Iedere levering van dranken, voedingswaren of diensten in de zalen is uitsluitend voorbehouden aan het
B24: Katelijnenhof, tenzij er een andere schriftelijke overeenkomst is.
B26: 4) De klant is eraan gehouden voor iedere dansavond met groot orkest een aanvraag tot toelating in te dienen bij
B27: SABAM, Rijselsestraat 51, 8500 Kortrijk, Tel : 056/210738 en alle kosten voortvloeiend uit deze aanvraag te
B28: dragen. Voor een gewone disc-jockey betalen wij jaarlijks een vaste bijdrage. Het verbruik (drank en voeding)
B29: van de DJ is ten laste van de klant. Gelet op de nieuwe geluidsnormen, van kracht op 01/01/2013, moet de
B30: klant de DJ of elke andere persoon of toestel dat geluid produceert verplichten zich aan deze normen te houden.
B31: De toelating voor onze zaal is – maximaal geluidsniveau > 85 dB(A) LAeq,15min en ≤ 95 dB(A) LAeq,15min.
B32: Dit is ruim voldoende. Alle boetes ten gevolge een overschrijding van deze voorwaarde zijn ten laste van de
B33: klant. Er wordt een professionele houding van elke DJ of geluidstechnicus verwacht.
B35: 5) Alle door de klant meegebrachte materiaal dient door de klant te worden verzekerd en direct na het beëindigen
B36: van de manifestatie te worden verwijderd uit de zaal. Het Katelijnenhof behoudt het recht de leverancier te
B37: aanvaarden en voorschriften te geven om de lokalen ongeschonden te behouden. Het is strikt verboden om
B38: versieringen aan de muren of plafonds te bevestigen met duimspijkers of kleefband ! Bij beschadigingen van
B39: een deel van de muur wordt het geheel als beschadigd beschouwd.
B41: 6) Het gebruik van de zaal is strikt beperkt tot de in deze overeenkomst vastgestelde functie.
B42: Iedere wijziging in de voorheen verklaarde bestemming brengt automatisch het recht tot prijsherziening met zich mee.
B44: 7) Het gebruik van de zaal is gratis van zodra het verbruik hoger ligt dan € | J44: =matrixen!E6 -> 950
B45: ="Indien het verbruik lager ligt dan wordt het factuurbedrag opgetrokken tot € "&J44 -> Indien het verbruik lager ligt dan wordt het factuurbedrag opgetrokken tot € 950
B46: Indien uw feest cash (max € 3000) betaald wordt op de dag zelf dan krijgt u een korting van 2 %
B47: op de gehele factuur. Voor traiteurdienst gelden andere kortingsregels.
B49: 8) Op vrijdag-, zaterdag- en (in geval van een avondfeest) op zondagnacht sluit de zaal,
B50: overeenkomstig het politiereglement, om 03 uur.
B51: Indien de klant dit wenst kan een afwijking bekomen worden op dit reglement mits het betalen van € | M51: =J44/10 -> 95
B52: (btw incl.) per uur. De klant heeft tijd tot 02u30 om te beslissen of hij van deze afwijking wenst gebruik te
B53: maken of niet. Indien de klant akkoord gaat deze toeslag te betalen zal het Katelijnenhof onmiddellijk een
B54: aanvraag doen bij de lokale politie. In het andere geval worden vanaf 02u45 geen dranken meer bediend en
B55: sluiten om 03u00 de deuren. Voor de andere dagen gelden andere tarieven.
B56: Op een zaterdag - en zondagmiddagfeest sluit de zaal om 18u30. Indien u wenst langer te blijven wordt per
B57: begonnen uur eveneens een toeslag van € | G57: =M51 -> 95
B58: (btw incl.) aangerekend.
B59: 9) De klant is verantwoordelijk voor de goede orde in en rond de feestzaal. Schade veroorzaakt door een der
B60: aanwezigen kan verhaald worden op deze persoon maar als deze om gelijk welke reden de schade niet kan
B61: vergoeden (vb: te weinig financiële middelen of de veroorzaker is onbekend) kan deze schade eveneens
B62: ondeelbaar worden verhaald op de klant , zijnde de persoon die het feest heeft besteld. VB: per gebroken tulpje
B63: aan de lusters van de grote zaal wordt 25 euro aangerekend.

Sheet Reservatievoorstel
C1: Reservatievoorstel | K1: Uitsplitsing per BTW tarief. | P1: Totaalprijs per vol: | Q1: =D9 -> 33.8
A2: Naam Klant: | C2: ='koud buffet'!F84 -> 0 | E2: Katelijnenhof | O2: =IF(P2>0,"Prijs drankforfait na de maaltijd, volledig aan 21% BTW:","") -> Prijs drankforfait na de maaltijd, volledig aan 21% BTW: | P2: =IF(Q2>0,"Prijs drankforfait na de maaltijd, volledig aan 21% BTW:","") ->  | Q2: ='koud buffet'!D68 -> 0
A3: Adres: | C3: ='koud buffet'!F85 -> 0 | E3: Heirweg 172 | H3: aankomst om: | I3: ='koud buffet'!F82 -> 0 | M3: Menu | O3: Dep. B | P3: =IF(Q2>0,"Drank- forfait:","") ->  | Q3: Totaal aan 21% | R3: Dep. A
A4: Stad: | C4: ='koud buffet'!F86 -> 0 | E4: 8800 Roeselare | H4: aan tafel om: | I4: ='koud buffet'!F83 -> 0 | K4: aantal | L4: totaal: | M4: deel 12% | N4: deel21%
A5: Tel nr: | C5: ='koud buffet'!F87 -> 0 | E5: info@katelijnenhof.be | J5: Vol | K5: =C9 -> 0 | L5: =Q1-Q2 -> 33.8 | M5: =ROUND(L5*0.65,2) -> 21.97 | N5: =L5-M5 -> 11.83 | O5: =K5*M5 -> 0 | P5: =Q2 -> 0 | Q5: =N5+P5 -> 11.83 | R5: =K5*Q5 -> 0
A6: ='koud buffet'!J95 -> reden feest: | B6: ='koud buffet'!K95 -> 0 | E6: Gsm 0475/618058 | J6: JR 1/2 | K6: =C10 -> 0 | L6: =L5/2 -> 16.9 | M6: =ROUND(L6*0.65,2) -> 10.99 | N6: =L6-M6 -> 5.91 | O6: =K6*M6 -> 0 | P6: =Q2/2 -> 0 | Q6: =N6+P6 -> 5.91 | R6: =K6*Q6 -> 0
A7: Datum activiteit: | C7: ='koud buffet'!F75 -> 00:00:00 | E7: email klant: | F7: ='koud buffet'!F88 -> 0 | J7: JR 1/3 | K7: =C11 -> 0 | L7: =L5/3 -> 11.26666667 | M7: =ROUND(L7*0.65,2) -> 7.32 | N7: 3.946666667 | O7: 0 | P7: =Q2/3 -> 0 | Q7: =N7+P7 -> 3.946666667 | R7: 0
C8: Totaal aantal personen: | D8: =C9+C12+C11+C10 -> 0 | J8: JR gratis | K8: =C12 -> 0 | L8: =E12 -> 0 | M8: =L8*0.65 -> 0 | N8: =L8*0.35 -> 0 | O8: 0 | Q8: =N8+P8 -> 0 | R8: 0
B9: volwassenen: | C9: ='koud buffet'!F77 -> 0 | D9: ='koud buffet'!D7 -> 33.8 | H9: raming totaal 1: | I9: =C9*D9+C10*D10+C11*D11+C12*D12 -> 0 | L9: Voorschot reeds betaald: | O9: =ROUND(M9/98*100,2) -> 0 | P9: =IF(Q9>0,"Huur zaal/muziekinstallatie: ","") ->  | Q9: =I11 -> 0
B10: JR 1/2 (6 t.e.m. 11) : | C10: ='koud buffet'!F78 -> 0 | D10: ='koud buffet'!J7 -> 16.9 | H10: ander rekenblad: | I10: ='koud buffet'!F90 -> 0 | L10: Gestort / betaald op:
B11: JR 1/3 (3 t.e.m. 5) : | C11: ='koud buffet'!F79 -> 0 | D11: ='koud buffet'!H7 -> 11.26666667 | H11: huur zaal: | I11: =IF(D8=0,0,IF((I9+I10)<'Algemene verkoopsvoorwaarden'!J44,'Algemene verkoopsvoorwaarden'!J44-Reservatievoorstel!I9-Reservatievoorstel!I10,0)) -> 0 | L11: =IF(O9>0,"Voorschot uitgesplitst:","") ->  | M11: =IF(O9>0," € "&ROUND(O9*0.65,2)& " x 12% => Dep. B en € " & ROUND(O9*0.35,2) & " x 21% => Dep. A.","") -> 
B12: JR gratis (0 t.e.m. 2) : | C12: ='koud buffet'!F80 -> 0 | D12: ='koud buffet'!F7 -> 0,00 | H12: raming algemeen totaal: | I12: =I11+I10+I9 -> 0 | M12: Voorschot wordt gesplitst over: | N12: =IF(O9>0,ROUNDUP((O9+1)/L5,0),0) -> 0 | O12: volwassenen
H13: raming te betalen indien contante betaling (max € 3000 cash): | I13: ='koud buffet'!G96 -> 0 | J13: Input GKS: | M13: =IF(O9*0.65 >N12*M5,"ONMOGELIJK U bekomt negatieve waarden.","") -> 
A14: Voorkeur tafelschikking: | D14: ='koud buffet'!K94 -> geen voorkeur | J14: =N12 -> 0 | K14: vol | L14: x | M14: =IFERROR(ROUND(M5-O9*0.65/N12,2),"") ->  | N14: 0.12 | O14: =IFERROR(J14*M14,"") ->  | P14: Dep. B | Q14: Verwerking voorschot
A15: ='koud buffet'!H76 ->  | I15: ='koud buffet'!B20 -> De gast die een extra aperitief bestelt betaalt deze zelf | J15: =IFERROR( " Er wordt € " & ROUND(O9*0.65/N12,2) & " minder geboekt bij " & N12 & " personen omdat dit reeds als voorschot werd geboekt.","") -> 
A16: ='koud buffet'!H77 ->  | I16: =IF(O9>0," Uw voorschot van € " & O9 & " wordt nog in mindering gebracht","") ->  | J16: =N12 -> 0 | K16: vol | L16: x | M16: =IFERROR(ROUND(Q5-O9*0.35/N12,2),"") ->  | N16: 0.21 | O16: =IFERROR(J16*M16,"") ->  | P16: Dep. A | Q16: Verwerking voorschot
A17: ='koud buffet'!H78 ->  | J17: =IFERROR( " Er wordt € " & ROUND(O9*0.35/N12,2) & " minder geboekt bij " & N12 & " personen omdat dit reeds als voorschot werd geboekt.","") -> 
A18: ='koud buffet'!H79 ->  | J18: =K5-J14 -> 0 | K18: =K14 -> vol | L18: x | M18: =M5 -> 21.97 | N18: 0.12 | O18: =J18*M18 -> 0 | P18: Dep. B
A19: ='koud buffet'!H80 ->  | J19: =K5-J16 -> 0 | K19: =K16 -> vol | L19: x | M19: =Q5 -> 11.83 | N19: 0.21 | O19: 0 | P19: Dep. A
A20: ='koud buffet'!H81 ->  | J20: =K6 -> 0 | K20: =J6 -> JR 1/2 | L20: x | M20: =M6 -> 10.99 | N20: 0.12 | O20: 0 | P20: Dep. B
A21: ='koud buffet'!H82 ->  | J21: =K6 -> 0 | K21: =J6 -> JR 1/2 | L21: x | M21: =Q6 -> 5.91 | N21: 0.21 | O21: 0 | P21: Dep. A
A22: ='koud buffet'!H83 -> Koude aardappelen | G22: ='koud buffet'!H84 -> Groenten en sausen | J22: =K7 -> 0 | K22: =J7 -> JR 1/3 | L22: x | M22: =M7 -> 7.32 | N22: 0.12 | O22: 0 | P22: Dep. B
A23: Koud buffet met volgende specialiteiten: | E23: =IF('koud buffet'!B50=$AG$23,"",'koud buffet'!B50) ->  | I23: =IF('koud buffet'!F50=$AG$25,"",'koud buffet'!F50) ->  | J23: =K7 -> 0 | K23: =J7 -> JR 1/3 | L23: x | M23: =Q7 -> 3.946666667 | N23: 0.21 | O23: 0 | P23: Dep. A | AG23: =matrixen!B97 -> Kies uit deze vlees- of visspecialiteiten
A24: =IF('koud buffet'!B39=$AG$23,"",'koud buffet'!B39) ->  | E24: =IF('koud buffet'!F39=$AG$24,"",'koud buffet'!F39) ->  | I24: =IF('koud buffet'!F51=$AG$25,"",'koud buffet'!F51) ->  | J24: =IF(L24>0,"1",0) -> 0 | K24: =IF(L24>0,"x","") ->  | L24: =Q9 -> 0 | M24: =IF(L24>0,"21%","") ->  | N24: =IF(L24>0,"Dep. A","") ->  | O24: =P9 ->  | AG24: =matrixen!E97 -> supplement 1
A25: =IF('koud buffet'!B40=$AG$23,"",'koud buffet'!B40) ->  | E25: =IF('koud buffet'!F40=$AG$24,"",'koud buffet'!F40) ->  | I25: =IF('koud buffet'!F52=$AG$25,"",'koud buffet'!F52) ->  | K25: Totale boekwaarde: | L25: =SUM(O14:O23)+L24+O9+I10 -> 0 | M25: =IF(SUM(O14:O23)+L24+O9+I10 <>I12," Er is iets fout met de splitsingstabel","") ->  | AG25: =matrixen!H97 -> supplement 2
A26: =IF('koud buffet'!B41=$AG$23,"",'koud buffet'!B41) ->  | E26: =IF('koud buffet'!F41=$AG$24,"",'koud buffet'!F41) ->  | J26: ="De eventuele korting contant van 2 %, in het huidig voorstel is dit € " &ROUND( I12-I13,2) & " is nog niet in bovenstaande splitsing verwerkt." -> De eventuele korting contant van 2 %, in het huidig voorstel is dit € 0 is nog niet in bovenstaande splitsing verwerkt.
A27: =IF('koud buffet'!B42=$AG$23,"",'koud buffet'!B42) ->  | E27: =IF('koud buffet'!F42=$AG$24,"",'koud buffet'!F42) -> 
A28: =IF('koud buffet'!B43=$AG$23,"",'koud buffet'!B43) ->  | E28: =IF('koud buffet'!F43=$AG$24,"",'koud buffet'!F43) ->  | J28: =IF(M28<>"","Detail van het aperitief:","") ->  | M28: =A15 -> 
A29: =IF('koud buffet'!B44=$AG$23,"",'koud buffet'!B44) ->  | E29: =IF('koud buffet'!F44=$AG$24,"",'koud buffet'!F44) -> 
A30: =IF('koud buffet'!B45=$AG$23,"",'koud buffet'!B45) ->  | E30: =IF('koud buffet'!F45=$AG$24,"",'koud buffet'!F45) ->  | J30: ='koud buffet'!H13 -> 0
A31: =IF('koud buffet'!B46=$AG$23,"",'koud buffet'!B46) ->  | E31: =IF('koud buffet'!F46=$AG$24,"",'koud buffet'!F46) ->  | J31: ='koud buffet'!H14 -> 0
A32: =IF('koud buffet'!B47=$AG$23,"",'koud buffet'!B47) ->  | E32: =IF('koud buffet'!F47=$AG$24,"",'koud buffet'!F47) ->  | J32: ='koud buffet'!H15 -> 0
A33: =IF('koud buffet'!B48=$AG$23,"",'koud buffet'!B48) ->  | E33: ='koud buffet'!H88 -> Huiswijn, bieren en frisdranken als forfait | J33: ='koud buffet'!H16 -> 0
A34: =IF('koud buffet'!B49=$AG$23,"",'koud buffet'!B49) ->  | J34: ='koud buffet'!H17 -> 0
A35: ='koud buffet'!H89 ->  | J35: ='koud buffet'!H18 -> 0
A36: ='koud buffet'!H90 ->  | J36: ='koud buffet'!H19 -> 0
A37: ='koud buffet'!H91 & " " & 'koud buffet'!B68 -> Keuze drank na de maaltijd: Alle drank na de maaltijd komt op één rekening en wordt door de organisator van het feest betaald | J37: ='koud buffet'!H20 -> 0
J38: ='koud buffet'!H21 -> 0
A39: ="Opmerking : " &'koud buffet'!K96 -> Opmerking : | J39: ='koud buffet'!H22 -> 0
J40: ='koud buffet'!H23 -> 0
J41: ='koud buffet'!H24 -> 0
B42: Vegetariërs: | C42: ='koud buffet'!G68 -> nee | F42: Feest met discobar: | G42: ='koud buffet'!G70 -> nee | I42: Halal bereidingen: | J42: ='koud buffet'!H25 -> 0
B43: Speciale dieten: | C43: ='koud buffet'!I68 -> nee | F43: ='koud buffet'!H70 -> Allergenen: | G43: ='koud buffet'!I70 -> nee | I43: ='koud buffet'!K68 -> nee | J43: ='koud buffet'!H26 -> 0
A44: ='koud buffet'!B70 & " " & 'koud buffet'!B71 -> Wijze van betaling: Betaling op de dag zelf (cash of bancontact), u bekomt 2% korting op het totaal | I44: Factuur: | J44: =IF(A35<>"","Detail van het dessert:","") -> 
I45: ='koud buffet'!K97 -> nee | J45: ='koud buffet'!F59 -> 0
A46: Het juiste aantal EN de gewenste tafelschikking moet ons meegedeeld worden ten laatste op: | I46: =C7-9 -> -9 | J46: ='koud buffet'!F60 -> 0
A47: Wijzigingen na deze datum van aantal en/of tafelschikking hebben prijsherzieningen tot gevolg! | J47: ='koud buffet'!F61 -> 0
A48: Dit aantal geldt als minimum voor facturatie. Verdere verkoopsvoorwaarden op een ander werkblad. | J48: ='koud buffet'!F62 -> 0
A49: Vergeet ze niet te lezen. | H49: Gaat u akkoord met de algemene verkoopsvoorwaarden? | I49: ='koud buffet'!K93 -> ja | J49: ='koud buffet'!F63 -> 0
A50: Handtekening der beide partijen voor akkoord: | E50: De klant | H50: Het Katelijnenhof | J50: ='koud buffet'!F64 -> 0
